Cogmind - Beta 13 @@@ ROGUE MODE // 2024.07.23 @ 23:32:13 Player: OctagonalPrism Result: Destroyed by P-70 Sage with Tesla Rifle Performance ------------- Evolutions (6) 3000 Regions Visited (12) 2400 Robots Destroyed (67) 335 Value Destroyed (2190) 2190 Prototype IDs (6) 120 Alien Tech Used (0) 0 Bonus (800) 800 TOTAL SCORE: 8845 Bonus ------- Entered DSFs 500 Aligned with FarCom 300 Cogmind --------- Core Integrity 0/1150 Matter 300/300 Energy 72/100 System Corruption 28% Temperature Cool (0) Movement Core (50) Location -4/Factory Parts ------- > --- POWER (2) -------- (None) > --- PROPULSION (4) --- (None) > --- UTILITY (9) ------ Advanced Terrain Scan Processor Improved Target Analyzer > --- WEAPON (4) ------- (None) > --- INVENTORY (5) ---- Compact Matter Pod (83) Peak State ------------ > --- POWER ------------ Micro Fission Core Micro Fission Core > --- PROPULSION ------- Wheel Compact Wheel Compact Wheel Compact Wheel > --- UTILITY ---------- Medium Storage Unit Improved Terrain Scanner Advanced Terrain Scan Processor Advanced Targeting Computer Improved Target Analyzer Core Analyzer Improved Weapon Cycler Hacking Suite Hacking Suite > --- WEAPON ----------- High-powered Shock Rifle Tesla Rifle Coil Gun Axe > --- INVENTORY -------- Antigrav System Antigrav System Compact Matter Pod EM Disruption Field Autogun Smartbomb Launcher [Rating: 70] Favorites ----------- Power Light Nuclear Core Engine Angular Momentum Engine Power Core Light Nuclear Core Reactor Antimatter Reactor Propulsion Light Treads Treads Light Treads Leg Carbon-fiber Leg Wheel Compact Wheel Hover Unit Antigrav System Flight Unit VTOL Module Utility Medium Storage Unit Device Improved Terrain Scanner Storage Medium Storage Unit Processor Advanced Targeting Computer Hackware Hacking Suite Protection Hardened Light Armor Plating Weapon Assault Rifle Energy Gun Tesla Rifle Energy Cannon Compact Ion Cannon Ballistic Gun Assault Rifle Ballistic Cannon Gauss Cannon Launcher Smartbomb Launcher Impact Weapon Great Maul Slashing Weapon Axe Piercing Weapon Force Lance Build | -11 -10 -10 -10 -9 -8 -7 -6 -6 -5 -4 -4 -4 ------- Run | Yrd Mat Min Exi Min Mat Fac Fac DSF Fac Fac Was Fac Slots Evolved 12 | . . . . . 4 2 2 . 2 2 . . Power 1 | . . . . . . . . . . 1 . . Propulsion 2 | . . . . . . 1 . . 1 . . . Utility 7 | . . . . . 3 1 2 . . 1 . . Weapon 2 | . . . . . 1 . . . 1 . . . Parts Attached 164 | 7 7 . 3 3 25 18 3 7 62 15 2 12 Power 23 | 1 1 . . 1 4 4 . 1 8 3 . . Engine 9 | 1 . . . . 1 2 . 1 4 . . . Core 13 | . 1 . . 1 3 2 . . 4 2 . . Reactor 1 | . . . . . . . . . . 1 . . Propulsion 37 | 2 1 . 1 . 5 5 . 2 17 3 . 1 Treads 8 | 2 1 . 1 . 1 3 . . . . . . Leg 7 | . . . . . 2 . . 2 3 . . . Wheel 10 | . . . . . 2 2 . . 6 . . . Hover 9 | . . . . . . . . . 5 3 . 1 Flight 3 | . . . . . . . . . 3 . . . Utility 46 | 2 1 . 2 2 6 6 3 2 15 3 . 4 Device 25 | 1 . . 2 1 1 4 2 1 7 2 . 4 Storage 7 | 1 1 . . . . 1 . . 4 . . . Processor 11 | . . . . 1 3 1 1 1 3 1 . . Hackware 2 | . . . . . 1 . . . 1 . . . Protection 1 | . . . . . 1 . . . . . . . Artifact . | . . . . . . . . . . . . . Weapon 58 | 2 4 . . . 10 3 . 2 22 6 2 7 Energy Gun 22 | . . . . . 4 1 . 1 6 2 1 7 Energy Cannon 1 | . . . . . . . . . 1 . . . Ballistic Gun 21 | 2 4 . . . 3 1 . . 9 2 . . Ballistic Cannon 4 | . . . . . . 1 . . 3 . . . Launcher 2 | . . . . . . . . . . 1 1 . Special Weapon . | . . . . . . . . . . . . . Impact Weapon 1 | . . . . . 1 . . . . . . . Slashing Weapon 6 | . . . . . 2 . . 1 3 . . . Piercing Weapon 1 | . . . . . . . . . . 1 . . Special Melee Weapon . | . . . . . . . . . . . . . Unidentified Prototypes 4 | . . . 1 1 1 . . . 1 . . . Parts Lost 75 | . . . . . 9 2 . 8 28 15 2 11 Power 8 | . . . . . 1 . . 1 3 3 . . Propulsion 22 | . . . . . 2 1 . 2 11 4 1 1 Utility 25 | . . . . . 4 . . 3 6 3 1 8 Weapon 20 | . . . . . 2 1 . 2 8 5 . 2 Highest Loss Streak 25 | . . . . . 4 2 . 7 25 14 2 11 To Critical Strikes 2 | . . . . . . . . . . 2 . . Average Slot Usage (%) 85 | . 99 100 99 99 94 89 93 88 80 94 38 48 Engine 2 | . 6 . . . 2 . 6 6 2 . . . Core 4 | . 7 14 14 14 6 6 . . 1 8 . . Treads 8 | . 27 28 28 28 12 4 6 5 . . . . Leg 2 | . . . . . 1 6 . 1 5 . . . Wheel 4 | . . . . . 2 6 6 5 7 18 . . Device 10 | . 14 14 13 7 . 9 20 18 10 7 5 16 Storage 7 | . 14 14 14 14 9 7 6 6 4 5 1 . Processor 15 | . . . . 5 16 15 20 20 18 24 26 25 Hackware 5 | . . . . . 9 7 6 6 7 8 . . Protection 1 | . . . . . 8 . . . . . . . Energy Gun 5 | . . . . . 2 12 . . 8 8 . 5 Ballistic Gun 9 | . 28 28 28 28 15 . 6 5 1 4 . . Ballistic Cannon 1 | . . . . . . 1 6 5 3 . . . Impact Weapon 1 | . . . . . . 7 6 1 . . . . Slashing Weapon 2 | . . . . . 7 . . 4 2 4 . . Naked Turns . | . . . . . . . . . . . . . Heaviest Build 55 | 14 20 20 20 20 34 34 34 43 55 50 17 16 Greatest Support 64 | 40 40 40 40 40 40 44 28 37 64 58 33 11 Greatest Overweight (x) 5 | . . . . . 1 1 1 1 3 1 2 5 Average Overweight (x) . | . . . . . . . 1 . . . . 1 Largest Inventory Capacity 10 | 8 10 10 10 10 10 10 10 10 10 10 10 5 Average Capacity 9 | 7 9 10 10 10 10 10 10 10 9 10 6 5 Most Carried 10 | 2 10 10 10 10 9 10 8 8 10 9 5 4 Average Carried 6 | 1 5 10 9 8 5 6 7 7 6 6 4 1 Final Capacity 10 | 8 10 10 10 10 10 10 10 10 10 10 5 5 Final Carried 10 | 1 10 10 10 8 5 9 7 6 10 2 3 1 Class Distribution -------------------- 56% | Mutant 13% | Scavenger-Assassin 9% | Scavenger-Mutant 9% | Skirmisher 6% | Assassin Dominant Class ---------------- Mutant | -10/Materials Mutant | -10/Mines Mutant | -10/Exiles Skirmisher | -9/Mines Mutant | -8/Materials Mutant | -7/Factory Assassin | -6/Factory Mutant | -6/DSF Scavenger-Assassin | -5/Factory Scavenger-Assassin | -4/Factory Mutant | -4/Waste Mutant | -4/Factory Resources | -11 -10 -10 -10 -9 -8 -7 -6 -6 -5 -4 -4 -4 ----------- Run | Yrd Mat Min Exi Min Mat Fac Fac DSF Fac Fac Was Fac Matter Collected 2502 | 247 322 . 66 102 434 123 150 140 701 . . 217 Remotely . | . . . . . . . . . . . . . Salvage Created 2607 | 24 417 . . 139 622 225 . 200 710 53 . 217 Parts 142 | 4 44 . . 9 24 7 . 8 38 2 . 6 Haulers Intercepted 1 | . 1 . . . . . . . . . . . Recyclers Shooed . | . . . . . . . . . . . . . Parts Field Recycled . | . . . . . . . . . . . . . Retrieved Matter . | . . . . . . . . . . . . . Parts Self-Destructed . | . . . . . . . . . . . . . Prevented . | . . . . . . . . . . . . . Kills | -11 -10 -10 -10 -9 -8 -7 -6 -6 -5 -4 -4 -4 ------- Run | Yrd Mat Min Exi Min Mat Fac Fac DSF Fac Fac Was Fac Combat Hostiles Destroyed 46 | . 11 . . 5 11 2 . 4 11 1 . 1 Melee 4 | . . . . . . . . . 3 1 . . Guns 33 | . 11 . . 5 9 1 . 2 4 . . 1 Cannons 4 | . . . . . . . . 1 3 . . . AOE 3 | . . . . . 2 . . . 1 . . . Classes Destroyed 13 | 1 6 . . . 4 1 . . . . . 1 Worker 5 | . 2 . . . . 1 . . 2 . . . Builder 3 | . . . . . 2 . . . 1 . . . Tunneler 1 | 1 . . . . . . . . . . . . Hauler 1 | . 1 . . . . . . . . . . . Recycler 6 | . . . . . 2 1 . . 2 . . 1 Mechanic 1 | . . . . . . . . . . . . 1 Operator 1 | . 1 . . . . . . . . . . . Watcher 3 | . 2 . . . . 1 . . . . . . Swarmer 12 | . 6 . . 3 . . . . 3 . . . Grunt 21 | . 5 . . 2 9 . . 1 4 . . . Specialist 4 | . . . . . 1 . . 3 . . . . Hunter 1 | . . . . . 1 . . . . . . . Programmer 8 | . . . . . . 2 . . 4 1 . 1 Best Kill Streak 7 | 1 7 . . 3 5 2 . 2 3 1 . 1 Combat Bots Only 5 | . 5 . . 3 3 1 . 2 3 1 . 1 Max Kills in Single Turn 5 | 1 1 . . 1 5 1 . 1 1 1 . 1 Gunslinging . | . . . . . . . . . . . . . Exploded 2 | . . . . . 2 . . . 1 . . . Melee 1 | . . . . . . . . . 1 1 . . Uniques/NPCs Destroyed . | . . . . . . . . . . . . . Combat | -11 -10 -10 -10 -9 -8 -7 -6 -6 -5 -4 -4 -4 -------- Run | Yrd Mat Min Exi Min Mat Fac Fac DSF Fac Fac Was Fac Hostile Shots Fired 697 | . 51 . . 28 84 24 . 134 208 99 2 67 Missed 182 | . 8 . . 10 20 7 . 43 44 32 . 18 Damage Taken 10097 | . 434 . . 167 1621 258 . 1803 3290 1265 79 1180 Core 3007 | . 71 . . 35 308 44 . 515 873 394 79 688 Absorbed by Shields . | . . . . . . . . . . . . . Ignored by Resistances 152 | . . . . . . . . . 56 75 . 21 Regen/Repaired (Parts) 366 | . 83 . . . 102 . . . 134 . . 47 Core Remaining (%) 57 | 100 . . . 57 44 93 . 39 12 . . . Volleys Fired 184 | 2 41 . . 12 46 11 . 14 41 1 . 16 Largest 4 | 2 2 . . 2 3 2 . 2 4 2 . 2 Hottest 176 | 40 40 . . 40 101 100 . 76 162 95 . 176 Shots Fired 366 | 4 82 . . 24 97 21 . 28 84 2 . 24 Gun 329 | 4 82 . . 24 97 21 . 14 61 2 . 24 Cannon 37 | . . . . . . . . 14 23 . . . Launcher . | . . . . . . . . . . . . . Special . | . . . . . . . . . . . . . Kinetic 283 | 4 82 . . 24 77 . . 28 67 1 . . Thermal 71 | . . . . . 20 11 . . 16 . . 24 Explosive . | . . . . . . . . . . . . . Electromagnetic 12 | . . . . . . 10 . . 1 1 . . Robot Hit Streak 16 | 3 16 . . 2 15 10 . 8 14 1 . 13 Robot Miss Streak 5 | . 4 . . 3 2 1 . 1 5 1 . 1 Penetration Max 1 | . . . . . . . . . 1 . . . Secondary Targets 5 | . 1 . . . 3 . . . 1 . . . Max Gunslinging Chain 1 | . 1 . . . 1 . . . 1 . . . Shots Hit Robots 278 | 3 51 . . 11 75 23 . 27 63 5 . 20 Core Hits 116 | 1 25 . . 8 28 6 . 6 29 2 . 11 Critical Kills . | . . . . . . . . . . . . . Critical Parts Destroyed 8 | . . . . . . 4 . 3 1 . . . Critical Strikes 17 | . . . . . 1 5 . 3 6 1 . 1 Burn 3 | . . . . . 1 1 . . . . . 1 Destroy 2 | . . . . . . . . 1 1 . . . Blast 3 | . . . . . . . . . 3 . . . Smash 6 | . . . . . . 4 . 2 . . . . Sever 2 | . . . . . . . . . 2 . . . Impale 1 | . . . . . . . . . . 1 . . Melee Attacks 107 | . . . . . 43 15 4 9 25 11 . . Impact 24 | . . . . . 2 15 4 3 . . . . Slashing 79 | . . . . . 41 . . 6 25 7 . . Piercing 4 | . . . . . . . . . . 4 . . Sneak Attacks 9 | . . . . . 2 2 . 1 4 . . . Combat Hostiles 1 | . . . . . . . . 1 . . . . Follow-up Attacks . | . . . . . . . . . . . . . Damage Inflicted 7007 | 35 558 . . 163 1899 619 . 563 2259 160 . 751 Guns 3878 | 35 558 . . 163 1114 250 . 165 1023 4 . 566 Cannons 658 | . . . . . . . . 217 441 . . . Explosions 912 | . . . . . 627 . . . 285 . . . Melee 1374 | . . . . . 158 369 . 181 510 156 . . Ramming 185 | . . . . . . . . . . . . 185 Kinetic 3047 | 35 558 . . 163 762 . . 382 1147 . . . Thermal 1438 | . . . . . 352 203 . . 317 . . 566 Explosive 912 | . . . . . 627 . . . 285 . . . Electromagnetic 51 | . . . . . . 47 . . . 4 . . Impact 618 | . . . . . 68 369 . 181 . . . . Slashing 600 | . . . . . 90 . . . 510 . . . Piercing 156 | . . . . . . . . . . 156 . . Highest Corruption 28 | . . . . . 4 2 . 1 24 4 4 28 Average Corruption 8 | . . . . . 4 1 . 1 13 2 4 5 Corruption Purged 1 | . . . . . . . . . 1 . . . Corruption Blocked . | . . . . . . . . . . . . . Effects 93 | . . . . . 4 4 . . 60 1 5 19 Message Errors 19 | . . . . . 1 . . . 11 1 2 4 Matter Fused 20 | . . . . . . 1 . . 16 . 1 2 Heat Flow Errors 11 | . . . . . . 1 . . 6 . 1 3 Energy Discharges 7 | . . . . . 1 . . . 5 . . 1 Data Loss (minor) 19 | . . . . . 1 2 . . 8 . 1 7 Data Loss (major) 4 | . . . . . 1 . . . 3 . . . Misfires 4 | . . . . . . . . . 4 . . . Alerts 2 | . . . . . . . . . 1 . . 1 Misdirections 4 | . . . . . . . . . 3 . . 1 Weapon Failures 3 | . . . . . . . . . 3 . . . Overload Shots . | . . . . . . . . . . . . . Overflow Damage 753 | . . . . . 158 293 . 120 182 . . . Projectiles 52 | . . . . . . 7 . . 45 . . . Explosions 163 | . . . . . 152 . . . 11 . . . Melee 538 | . . . . . 6 286 . 120 126 . . . Knockbacks 16 | . . . . . 1 3 . 3 9 . . . Impact 3 | . . . . . 1 2 . . . . . . Kinetic 12 | . . . . . . . . 3 9 . . . Secondary 1 | . . . . . . 1 . . . . . . Self-Inflicted Damage 317 | . . . . . 177 . . . 56 . . 84 Shots 3 | . . . . . 2 . . . 1 . . . Rammed 56 | . . . . . . . . . 1 . . 55 Targets Rammed 57 | . . . . . . . . 1 1 . . 55 Kicked 1 | . . . . . . . . 1 . . . . Crushed . | . . . . . . . . . . . . . Highest Temperature 397 | . 27 . . 10 397 233 . 12 332 15 255 253 Average Temperature 114 | . 6 . . 5 217 46 . 12 93 10 147 45 Received Heat Transfer 1419 | . 159 . . 45 531 . . 342 270 72 . . Effects 10 | . . . . . 8 . . . 2 . . . Shutdowns 2 | . . . . . 2 . . . . . . . Energy Bleed 2 | . . . . . 2 . . . . . . . Interference 3 | . . . . . 1 . . . 2 . . . Matter Decay 1 | . . . . . 1 . . . . . . . Damage (minor) 2 | . . . . . 2 . . . . . . . Siege Activations . | . . . . . . . . . . . . . Robots Corrupted 1 | . . . . . . 1 . . . . . . Combat Hostiles 1 | . . . . . . 1 . . . . . . Parts Fried 3 | . . . . . . . . 3 . . . . Impact Corruptions 12 | . . . . . . 9 . 3 . . . . Robots Melted . | . . . . . . . . . . . . . Combat Hostiles . | . . . . . . . . . . . . . Parts Melted 6 | . . . . . . . . . 2 . . 4 Heat Transferred 2644 | . . . . . 740 407 . . 683 . . 814 Parts Sabotaged . | . . . . . . . . . . . . . Parts Stolen . | . . . . . . . . . . . . . Parts Stripped . | . . . . . . . . . . . . . Power Chain Reactions . | . . . . . . . . . . . . . Alert | -11 -10 -10 -10 -9 -8 -7 -6 -6 -5 -4 -4 -4 ------- Run | Yrd Mat Min Exi Min Mat Fac Fac DSF Fac Fac Was Fac Peak Influence 185 | 5 175 1 . 120 175 85 4 165 185 44 15 30 Initial 79 | . 3 1 . . 46 79 . 2 52 22 . 10 Average 46 | . 70 1 . 99 37 47 2 69 62 26 8 12 Maximum Alert Level . | . . . . . . . . . . . . . Low Security (%) 100 | 100 100 100 . 100 100 100 100 100 100 100 100 100 Level 1 . | . . . . . . . . . . . . . Level 2 . | . . . . . . . . . . . . . Level 3 . | . . . . . . . . . . . . . Level 4 . | . . . . . . . . . . . . . Level 5 . | . . . . . . . . . . . . . High Security . | . . . . . . . . . . . . . Max Security . | . . . . . . . . . . . . . Squads Dispatched 23 | . 1 . . . 4 4 1 3 7 1 . 2 Investigation 4 | . 1 . . . 1 1 . . 1 . . . Extermination 7 | . . . . . . 2 1 . 2 1 . 1 Reinforcement 9 | . . . . . 1 1 . 3 4 . . . Assault . | . . . . . . . . . . . . . Garrison 3 | . . . . . 2 . . . . . . 1 Intercept . | . . . . . . . . . . . . . Searches Triggered . | . . . . . . . . . . . . . Construction Impeded 1 | . . . . . . . . . 1 . . . Haulers Reinforced . | . . . . . . . . . . . . . Active Scanning Responses . | . . . . . . . . . . . . . Cargo Convoy Interrupts 1 | . . . . . . . . . 1 . . . Stealth | -11 -10 -10 -10 -9 -8 -7 -6 -6 -5 -4 -4 -4 --------- Run | Yrd Mat Min Exi Min Mat Fac Fac DSF Fac Fac Was Fac Distress Signals . | . . . . . . . . . . . . . Communications Jammed 3 | . . . . . . . . . 3 . . . Distress Signals 3 | . . . . . . . . . 3 . . . Times Spotted 90 | . 14 . . 5 13 4 . 18 21 6 6 3 Peak Tracking Total 11 | . 5 . . 3 4 2 1 11 5 5 6 2 Tactical Retreats 8 | . . . . . . . . 3 4 . 1 . Traps | -11 -10 -10 -10 -9 -8 -7 -6 -6 -5 -4 -4 -4 ------- Run | Yrd Mat Min Exi Min Mat Fac Fac DSF Fac Fac Was Fac Traps Triggered 6 | . 2 . . . . . . . 2 2 . . Indirectly . | . . . . . . . . . . . . . Trap Hack Attempts . | . . . . . . . . . . . . . Triggered . | . . . . . . . . . . . . . Disarmed . | . . . . . . . . . . . . . Reprogrammed . | . . . . . . . . . . . . . Reused . | . . . . . . . . . . . . . Traps Extracted . | . . . . . . . . . . . . . Installed . | . . . . . . . . . . . . . Triggered 2 | . . . . . . . . . 2 . . . Machines | -11 -10 -10 -10 -9 -8 -7 -6 -6 -5 -4 -4 -4 ---------- Run | Yrd Mat Min Exi Min Mat Fac Fac DSF Fac Fac Was Fac Machines Disabled 5 | . . . . . 3 . . . 2 . . . Max in Single Turn 2 | . . . . . 2 . . . 2 . . . Machines Repaired . | . . . . . . . . . . . . . Machines Dismantled . | . . . . . . . . . . . . . Machines Sabotaged . | . . . . . . . . . . . . . Overloaded Fab Kills . | . . . . . . . . . . . . . Hacking | -11 -10 -10 -10 -9 -8 -7 -6 -6 -5 -4 -4 -4 --------- Run | Yrd Mat Min Exi Min Mat Fac Fac DSF Fac Fac Was Fac Machines Accessed 26 | . 7 . . . 9 3 1 . 3 2 . 1 Terminals 19 | . 6 . . . 7 3 1 . 1 1 . . Fabricators 1 | . . . . . . . . . . 1 . . Repair Stations 5 | . 1 . . . 1 . . . 2 . . 1 Recycling Units 1 | . . . . . 1 . . . . . . . Scanalyzers . | . . . . . . . . . . . . . Garrison Access . | . . . . . . . . . . . . . Total Hacks 85 | . 25 . . . 30 13 2 . 9 4 . 2 Successful 54 | . 9 . . . 22 11 1 . 6 3 . 2 Failed 31 | . 16 . . . 8 2 1 . 3 1 . . Catastrophic . | . . . . . . . . . . . . . Database Lockouts . | . . . . . . . . . . . . . Manual 36 | . 13 . 1 . 13 6 . . 2 1 . . Terminals 66 | . 22 . . . 25 13 2 . 2 2 . . Fabricators 2 | . . . . . . . . . . 2 . . Repair Stations 14 | . 3 . . . 2 . . . 7 . . 2 Recycling Units 3 | . . . . . 3 . . . . . . . Scanalyzers . | . . . . . . . . . . . . . Garrison Access . | . . . . . . . . . . . . . Terminal Hacks 23 | . 3 . . . 10 8 1 . . 1 . . Record 6 | . . . . . 1 5 . . . . . . Robot Analysis 3 | . 2 . . . 1 . . . . . . . Prototype ID Bank 1 | . . . . . 1 . . . . . . . Open DSF 1 | . . . . . . . 1 . . . . . Emergency Access Points 2 | . . . . . 2 . . . . . . . Terminal Index 1 | . . . . . . 1 . . . . . . Alert Level 1 | . . . . . 1 . . . . . . . Unreport Threat 1 | . . . . . 1 . . . . . . . Locate Traps 4 | . 1 . . . 1 1 . . . 1 . . Zone Layout 3 | . . . . . 2 1 . . . . . . Fabricator Hacks 1 | . . . . . . . . . . 1 . . Network Status 1 | . . . . . . . . . . 1 . . Repair Station Hacks 11 | . 2 . . . 2 . . . 5 . . 2 Scan Component 6 | . 1 . . . 1 . . . 3 . . 1 Repair 5 | . 1 . . . 1 . . . 2 . . 1 Recycling Unit Hacks 3 | . . . . . 3 . . . . . . . Process 1 | . . . . . 1 . . . . . . . Report Inventory 2 | . . . . . 2 . . . . . . . Scanalyzer . | . . . . . . . . . . . . . Garrison Access Hacks . | . . . . . . . . . . . . . Unauthorized Hacks 16 | . 4 . . . 7 3 . . 1 1 . . Terminals 16 | . 4 . . . 7 3 . . 1 1 . . Assimilate 2 | . . . . . 2 . . . . . . . Botnet 14 | . 4 . . . 5 3 . . 1 1 . . Fabricators . | . . . . . . . . . . . . . Repair Stations . | . . . . . . . . . . . . . Recycling Units . | . . . . . . . . . . . . . Scanalyzers . | . . . . . . . . . . . . . Garrison Access . | . . . . . . . . . . . . . Data Cores Recovered 1 | . 1 . . . . . . . . . . . Used 1 | . 1 . . . . . . . . . . . Hacking Detections 20 | . 7 . . . 8 2 . . 1 2 . . Full Trace Events 5 | . 2 . . . 1 1 . . 1 . . . Feedback Events . | . . . . . . . . . . . . . Feedback Blocked . | . . . . . . . . . . . . . Robot Schematics Acquired . | . . . . . . . . . . . . . Robots Built . | . . . . . . . . . . . . . Authchips . | . . . . . . . . . . . . . Time . | . . . . . . . . . . . . . Total Robot Build Rating . | . . . . . . . . . . . . . Part Schematics Acquired . | . . . . . . . . . . . . . Parts Built . | . . . . . . . . . . . . . Authchips . | . . . . . . . . . . . . . Time . | . . . . . . . . . . . . . Total Part Build Rating . | . . . . . . . . . . . . . Parts Repaired 4 | . 1 . . . 1 . . . 1 . . 1 Time 254 | . 26 . . . 26 . . . 99 . . 103 Parts Recycled . | . . . . . . . . . . . . . Recycled Matter 2 | . . . . . 2 . . . . . . . Retrieved Matter . | . . . . . . . . . . . . . Retrieved Components . | . . . . . . . . . . . . . Parts Scanalyzed . | . . . . . . . . . . . . . Part Schematics Acquired . | . . . . . . . . . . . . . Parts Damaged . | . . . . . . . . . . . . . Bothacking | -11 -10 -10 -10 -9 -8 -7 -6 -6 -5 -4 -4 -4 ------------ Run | Yrd Mat Min Exi Min Mat Fac Fac DSF Fac Fac Was Fac Used RIF Installer . | . . . . . . . . . . . . . Robots Hacked . | . . . . . . . . . . . . . Non-combat . | . . . . . . . . . . . . . Combat . | . . . . . . . . . . . . . Robot Hacks Applied . | . . . . . . . . . . . . . Relay Couplers Released . | . . . . . . . . . . . . . Fabnet Peak Effective % . | . . . . . . . . . . . . . Robots Rewired . | . . . . . . . . . . . . . Allies Hacked . | . . . . . . . . . . . . . Hacks Repelled . | . . . . . . . . . . . . . Allies | -11 -10 -10 -10 -9 -8 -7 -6 -6 -5 -4 -4 -4 -------- Run | Yrd Mat Min Exi Min Mat Fac Fac DSF Fac Fac Was Fac Total Allies 1 | . . . . . 1 . . . . . . . Largest Group 1 | . . . . . 1 . . . . . . . Highest-Rated Group 10 | . . . . . 10 . . . . . . . Highest-Rated Ally 10 | . . . . . 10 . . . . . . . Total Orders 3 | . . . . . 3 . . . . . . . STAY 2 | . . . . . 2 . . . . . . . FOLLOW 1 | . . . . . 1 . . . . . . . Ally Attacks . | . . . . . . . . . . . . . Total Damage . | . . . . . . . . . . . . . Kills . | . . . . . . . . . . . . . Allies Corrupted . | . . . . . . . . . . . . . Allies Melted . | . . . . . . . . . . . . . Intel | -11 -10 -10 -10 -9 -8 -7 -6 -6 -5 -4 -4 -4 ------- Run | Yrd Mat Min Exi Min Mat Fac Fac DSF Fac Fac Was Fac Robot Analysis Total 3 | . 2 . . . 1 . . . . . . . Derelict Logs Recovered . | . . . . . . . . . . . . . Drone Launches . | . . . . . . . . . . . . . Drone Recoveries . | . . . . . . . . . . . . . Exploration | -11 -10 -10 -10 -9 -8 -7 -6 -6 -5 -4 -4 -4 ------------- Run | Yrd Mat Min Exi Min Mat Fac Fac DSF Fac Fac Was Fac Turns Passed 8164 | 87 980 21 391 175 1471 1242 319 334 1788 403 172 781 Spaces Moved 4388 | 47 501 14 239 83 596 773 210 165 878 357 279 246 Core 468 | 5 . . . . . . . . 48 . 201 214 Treads 1343 | 42 501 14 239 83 464 . . . . . . . Legs 676 | . . . . . 58 306 . 23 289 . . . Wheels 1756 | . . . . . 74 467 210 142 527 336 . . Hover 143 | . . . . . . . . . 12 21 78 32 Flight 2 | . . . . . . . . . 2 . . . Fastest Speed 35 | 50 160 160 160 160 100 100 115 100 35 52 50 50 Average Speed 130 | 148 160 160 160 160 153 111 115 116 148 94 53 132 Slowest Speed 340 | 160 160 160 160 160 240 120 115 130 340 115 150 300 Overloaded Moves . | . . . . . . . . . . . . . Propulsion Burnouts . | . . . . . . . . . . . . . Robots Hopped . | . . . . . . . . . . . . . Cave-ins Triggered 2 | . . . . . 1 . . . 1 . . . Exploration Rate (%) 33 | 4 72 9 59 19 40 22 7 89 20 8 82 2 Regions Visited 12 Branch Regions 3 Pre-discovered Areas . | . . . . . . . . . . . . . Known Exits Taken 1 | . . . . . . . 1 . . . . . Unknown Exits Taken 8 | 1 1 1 1 1 1 1 . . 1 . . . Scrap Searched . | . . . . . . . . . . . . . Spaces Dug 56 | . . . . . 22 6 4 5 12 7 . . Terrain Destroyed 126 | . . . . . 56 6 4 6 47 7 . . Melee 56 | . . . . . 22 6 4 5 12 7 . . Projectile 13 | . . . . . . . . 1 12 . . . AOE 57 | . . . . . 34 . . . 23 . . . Terrain Rammed . | . . . . . . . . . . . . . Walls Destroyed . | . . . . . . . . . . . . . Machines Disabled . | . . . . . . . . . . . . . Actions | -11 -10 -10 -10 -9 -8 -7 -6 -6 -5 -4 -4 -4 --------- Run | Yrd Mat Min Exi Min Mat Fac Fac DSF Fac Fac Was Fac Total 6282 | 58 604 13 249 104 974 1102 280 265 1249 399 304 681 Wait 1254 | 1 42 . . . 249 265 61 63 198 11 20 344 Move 4377 | 46 500 13 238 82 595 772 209 164 877 357 278 246 Hop . | . . . . . . . . . . . . . Pick Up 64 | 2 9 . 3 2 8 9 1 2 22 2 2 2 Fast Attach 54 | 6 2 . 2 . 3 5 . 1 28 4 . 3 Attach 74 | 1 . . 1 2 13 4 3 4 26 9 2 9 Detach 26 | . . . . . 2 2 1 2 12 . 1 6 Swap 36 | . 5 . . 1 9 9 . 2 8 2 . . Drop 49 | . 5 . 5 5 6 10 1 3 11 2 1 . Fire 184 | 2 41 . . 12 46 11 . 14 41 1 . 16 Melee 107 | . . . . . 43 15 4 9 25 11 . . Ram 56 | . . . . . . . . . 1 . . 55 Kick 1 | . . . . . . . . 1 . . . . Crush . | . . . . . . . . . . . . . Escape Stasis . | . . . . . . . . . . . . . Rewire . | . . . . . . . . . . . . . Trap . | . . . . . . . . . . . . . Miscellaneous . | . . . . . . . . . . . . . Route ------- -11/Scrapyard -10/Materials (discovered 3 exits: [*Mat x2] / [*Min]) -10/Mines -10/Exiles -9/Mines -8/Materials -7/Factory -6/Factory -6/DSF -5/Factory -4/Factory -4/Waste -4/Factory History --------- Turn | Location | Event 25 | -11/Scrapyard | Discovered new exit (range 16) 88 | -11/Scrapyard | Entered Materials 268 | -10/Materials | Discovered new exit (range 10) 314 | -10/Materials | Build established: Mutant 593 | -10/Materials | Discovered new exit (range 11) 630 | -10/Materials | Repaired Lgt. Treads 1044 | -10/Materials | Discovered new exit (range 5) 1068 | -10/Materials | Entered Mines 1083 | -10/Mines | Deemed a non-threat by the Exiles lab entrance 1083 | -10/Mines | Discovered new exit (range 5) 1089 | -10/Mines | Entered Exiles 1128 | -10/Exiles | Met 8R-AWN 1155 | -10/Exiles | Met EX-HEX 1201 | -10/Exiles | Met EX-BIN 1221 | -10/Exiles | Aligned with FarCom system 1222 | -10/Exiles | Given EX-Vault access code 1259 | -10/Exiles | Opened EX-Vault 1268 | -10/Exiles | Found Prototype Device 1269 | -10/Exiles | Identified Chronowheel 1269 | -10/Exiles | Activated Chronowheel 1336 | -10/Exiles | Warned to stay clear of 0b10 Research branches 1379 | -10/Exiles | Met EX-DEC 1461 | -10/Exiles | Discovered new exit (range 14) 1480 | -10/Exiles | Entered Mines 1573 | -9/Mines | Found a damaged Exp. Sensor Array with a note attached 1577 | -9/Mines | Found Prototype Device 1578 | -9/Mines | Identified Exp. Sensor Array 1622 | -9/Mines | Discovered new exit (range 7) 1655 | -9/Mines | Entered Materials 1655 | -8/Materials | Evolved 4 slots: Utility x3, Weapon x1 2171 | -8/Materials | Repaired Lgt. Treads 2793 | -8/Materials | Crushed by falling debris 2824 | -8/Materials | Lost 3 parts (1p1u1w) 3002 | -8/Materials | Garrison activated, responded to threat 3050 | -8/Materials | Lost 4 parts (1n2u1w) 3084 | -8/Materials | Discovered new exit (range 8) 3085 | -8/Materials | Core integrity fell below 50% 3126 | -8/Materials | Entered Factory 3126 | -7/Factory | Evolved 2 slots: Propulsion x1, Utility x1 3319 | -7/Factory | Build established: Scavenger-Mutant 3972 | -7/Factory | Build established: Mutant 4285 | -7/Factory | Discovered new exit (range 13) 4368 | -7/Factory | Entered another Factory area 4368 | -6/Factory | Evolved 2 slots: Utility x2 4670 | -6/Factory | Build established: Assassin 4686 | -6/Factory | Identified exit to DSF 4687 | -6/Factory | Entered DSF 4741 | -6/DSF | Additional patrols routed to DSF 5002 | -6/DSF | Core integrity fell below 50% 5003 | -6/DSF | Discovered new exit (range 15) 5020 | -6/DSF | Lost 7 parts (2n3u2w) 5021 | -6/DSF | Entered Factory 5021 | -5/Factory | Evolved 2 slots: Propulsion x1, Weapon x1 5103 | -5/Factory | Repaired Titanium Leg 5321 | -5/Factory | Build established: Skirmisher 5815 | -5/Factory | Cargo convoy interrupted 5901 | -5/Factory | Crushed by falling debris 5901 | -5/Factory | System corruption reached 10% 5979 | -5/Factory | Core integrity fell below 50% 6043 | -5/Factory | Lost 25 parts (3p9n6u7w) 6151 | -5/Factory | Core integrity fell below 20% 6352 | -5/Factory | Build established: Scavenger-Assassin 6802 | -5/Factory | Discovered new exit (range 9) 6809 | -5/Factory | Entered another Factory area 6809 | -4/Factory | Evolved 2 slots: Power x1, Utility x1 7212 | -4/Factory | Manually triggered Chute Trap 7212 | -4/Factory | Sucked down chute 7212 | -4/Factory | Entered Waste 7220 | -4/Waste | Spotted C-40 Crusher 7230 | -4/Waste | Lost 14 parts (3p3n3u5w) 7240 | -4/Waste | Spotted C-40 Crusher 7240 | -4/Waste | Spotted C-40 Crusher 7276 | -4/Waste | Crushed by Compactor (1 part destroyed, 1 dropped) 7278 | -4/Waste | Crushed by Compactor (1 part destroyed, 1 dropped) 7280 | -4/Waste | Spotted C-40 Crusher 7281 | -4/Waste | Spotted C-40 Crusher 7281 | -4/Waste | Spotted C-40 Crusher 7356 | -4/Waste | Found Unknown Launcher 7366 | -4/Waste | Discovered new exit (range 12) 7379 | -4/Waste | Identified Fusion Bomb Launcher 7384 | -4/Waste | Entered Factory 7575 | -4/Factory | Repaired Broken Adv. Cloaking Device 7601 | -4/Factory | Build established: Mutant 8069 | -4/Factory | Garrison activated, responded to threat 8102 | -4/Factory | Core integrity fell below 50% 8114 | -4/Factory | System corruption reached 10% 8148 | -4/Factory | Core integrity fell below 20% 8165 | -4/Factory | Destroyed by P-70 Sage with Tesla Rifle Last Messages --------------- Slammed into P-70 Sage. 3SCH,O5W KYJYCGJ124P Slammed into P-70 Sage. Broken Machine Analyzer destroyed. System corrupted by crushing effect (+4). Slammed into P-70 Sage. Destabilizing: Core damaged (-34). Slammed into P-70 Sage. Antigrav System destroyed. System corrupted by crushing effect (+5). Slammed into P-70 Sage. Imp. Target Analyzer broken. Destabilizing: Short circuit. Adv. Cryofiber Web destroyed. Slammed into P-70 Sage. System corrupted: Energy discharge (-33). Slammed into P-70 Sage. Destabilizing: Core damaged (-23). Slammed into P-70 Sage. [Achievement: Just Browsing] Map ----- +----------------------------------------------------+ | ???? ? ????????????????????????? | | ???? ????????????????????????? | | """ """ #????????????????????????? | | """ """ " " #????????????????????????? | | """ """ "G" #????????????????????????? | | ???? """ #????????????????????????? | | ?????? #????????????????????????? | | ???????? #????????????????????????? | | ?????????? ?????????????????????????? | | ??????????##+###########????????????????? | | ""????????# #????????????????? | | ""????????# #????????????????? | | ""????????# """ #????????????????? | | ????????? / """ #????????????????? | | ??????????# """ #????????????????? | | ??????????# s #????????????????? | | ??????????# #????????????????? | | ??????????# """""""s #????????????????? | | ??????????# """""""s #????############# | | ??????????# """"""" #????# # | | ??????????# """"""" #????# """ """ # | | ??????????# !!| #????# """ "R" # | | ??????????#######/########### """ " " # | | ?????????????# Y # # | | ?????????????# u p # """ """ # | | ?????????????# @ + """ """ # | | ?????????????# # """ """ # | | ?????????????# ! # # | | ?????????????###" ######+##+# """ """ # | | ???????????????#" ## # """ """ # | | ???????????????##### """# """ """ # | | ???????????????????# """# # | | ???????????????????# """############# | | ???????????????????# #???????????? | | ?"""???????????????# """#???????????? | | ?"R"???????????????# """#???????????? | | ?"?"???????????????# """#???????????? | | ???????????????????# ! #???????????? | | ???????????????????##########???????????? | | ????????????????????????????????????????? | | ????????????????????????????????????????? | | ????????????????????????????????????????? | | ????????????????????????????????????????? | | ????????????????????????????????????????? | | ????????????????????????????????????????? | | ????????????????????????????????????????? | | ????????????????????????????????????????? | | | | | | | +----------------------------------------------------+ Best States ------------- Heat Dissipation 43 Energy Generation 31 Energy Capacity 375 Matter Stores 300 Matter Capacity 300 Sight Range 16 Terrain Scan Range 16 Terrain Scan Density 210 Jamming Range 12 Armor Coverage 150 Resistance: EX 50 Resistance: EM 25 Weapon Cycling 20 Evasion (%) 55 Targeting Accuracy 10 Target Analysis 6 Core Analysis 6 Armor Integrity Analysis 30 Recoil Reduction 2 Matter Filtering 30 Kinecelleration 30 Offensive Hacking 20 Item Schematics ----------------- None Robot Schematics ------------------ None Fabricated ------------ Nothing Alien Tech Used ----------------- None Achievements -------------- Batter Up Just Browsing Universal Adapter Wheee! Challenges ------------ None Game ------ Seed BlastThermoelectricCarapace Manual? 0 Play Time 02:01:50 Cumulative 24.3 hours Start 2024.07.23 @ 21:30:17 End 2024.07.23 @ 23:32:13 Sessions 1 Manual Loads 0 Difficulty Rogue Special Mode None Game No. 23 Rogue 23 Adventurer 0 Explorer 0 Win Type - Total 0 Types 0/0/0/0/0/0/0/0/0 Lore% 16 Gallery% 25 Achievement% 19 Wizard Run 0 Options --------- Layout 1 ASCII 0 Keyboard 0 Movement Mouse Keybinds 0 Fullscreen 1 Font 16/Terminus Map View 55x38 Zoom Use 0% Tactical HUD 0 Map Filters NONE Filters NONE Steam 1 RUN: b49f0fb4-2d41-4a78-9229-8a4ef583f5a7